fUST/lending_fUST_20250124
["ID","MTS","AMOUNT","RATE_DAILY","PERIOD"]
[350193142,1737681040450,-84.4797055,0.00021103,2]
[350193145,1737681040461,-415.5202945,0.00021103,2]
[350193148,1737681040470,-500.0,0.00021103,2]
[350193151,1737681040480,-500.0,0.00021103,2]
[350193153,1737681040489,-500.0,0.00021103,2]
[350193156,1737681040498,-500.0,0.00021103,2]
[350193159,1737681040507,-500.0,0.00021103,2]
[350193162,1737681040517,-207.90352927,0.00021103,2]
[350193165,1737681040526,-500.0,0.00021103,2]
[350193168,1737681040535,-71.52209009,0.00021103,2]
[350193170,1737681040547,-428.47790991,0.00021103,2]
[350193173,1737681040556,-426.5190358,0.00021103,2]
[350193176,1737681040565,-500.0,0.00021103,2]
[350193179,1737681040574,-500.0,0.00021103,2]
[350193182,1737681040583,-500.0,0.00021103,2]
[350193184,1737681040592,-311.82703673,0.00021103,2]
[350193187,1737681040601,-269.89387018,0.00021103,2]
[350193189,1737681040610,-500.0,0.00021103,2]
[350193192,1737681040620,-500.0,0.00021103,2]
[350193195,1737681040629,-500.0,0.00021103,2]
[350193198,1737681040640,-16048.38839074,0.00021103,5]
[350193201,1737681040649,-2344.89375664,0.00021104,5]
[350193421,1737681043020,-680.4484889,0.00021104,5]
[350193424,1737681043032,-1448.49851734,0.00021104,5]
[350193426,1737681043043,-13313.446265,0.00021104,5]
[350193437,1737681043142,-35954.42743136,0.00021104,5]
[350193440,1737681043156,-741.32642241,0.00021104,5]
[350193718,1737681046087,-153.0,0.0002053,2]
[350193720,1737681046097,-950.53187622,0.00021104,5]
[350193723,1737681046110,-7172.22631319,0.00021104,5]
[350193728,1737681046156,-985.994892,0.00021104,5]
[350193734,1737681046206,-25276.38296148,0.00021104,5]
[350193795,1737681888920,165.310752,0.00013973,2]
[350193803,1737682005186,-167.659085,0.00018814,2]
[350193804,1737682005207,-54.46373538,0.00019004,2]
[350193840,1737682232442,-327.666315,0.000189,2]
[350193842,1737682232453,-784.7045,0.0001899,2]
[350193844,1737682232464,-434.132,0.0002005,2]
[350193846,1737682232477,-500.0,0.00020164,2]
[350193848,1737682232489,-153.0,0.00020429,2]
[350193850,1737682232499,-153.0,0.00020436,2]
[350193853,1737682232510,-153.0,0.00020443,2]
[350193855,1737682232520,-153.0,0.00020443,2]
[350193857,1737682232531,-153.0,0.0002045,2]
[350193859,1737682232542,-153.0,0.0002045,2]
[350193861,1737682232552,-738.06,0.000206,2]
[350193863,1737682232564,-300.0,0.00020744,2]
[350193865,1737682232575,-500.0,0.00020745,3]
[350193868,1737682232586,-500.0,0.00020745,3]
[350193871,1737682232596,-160.0,0.00020746,3]
[350193873,1737682232609,-506.24907276,0.00020746,3]
[350193875,1737682232622,-500.0,0.00020746,3]
[350193876,1737682232633,-500.0,0.00020746,3]
[350193877,1737682232796,-500.0,0.00020746,3]
[350193878,1737682232807,-500.0,0.00020746,3]
[350193879,1737682232816,-500.0,0.00020746,3]
[350193880,1737682232826,-500.0,0.00020746,3]
[350193881,1737682232835,-1004.56269835,0.00020746,3]
[350193882,1737682232845,-205.73188356,0.00020746,3]
[350193883,1737682232858,-505.89365439,0.00020746,3]
[350193884,1737682232867,-157.0,0.00020795,2]
[350193885,1737682232876,-249.0,0.00020795,2]
[350193886,1737682232886,-166.0,0.00020795,2]
[350193887,1737682232896,-251.62,0.00020795,2]
[350193888,1737682232906,-152.0,0.00020795,2]
[350193889,1737682232915,-152.0,0.00020795,2]
[350193890,1737682232925,-165.310752,0.00020807,2]
[350193891,1737682232934,-247.216,0.00020815,2]
[350193892,1737682232944,-500.0,0.0002083,3]
[350193893,1737682232954,-1351.73,0.0002083,3]
[350193894,1737682232963,-162.66299217,0.0002083,3]
[350193895,1737682232973,-506.24729656,0.0002083,3]
[350193896,1737682232983,-501.49596675,0.0002083,3]
[350193897,1737682232992,-502.36432222,0.0002083,3]
[350193898,1737682233001,-501.13974454,0.0002083,3]
[350193899,1737682233011,-536.0,0.0002083,2]
[350193900,1737682233020,-2057.0,0.0002083,2]
[350193901,1737682233029,-1261.80257396,0.0002083,2]
[350193902,1737682233042,-1043.19742604,0.0002083,2]
[350193903,1737682233052,-481.11593496,0.00020882,3]
[350193914,1737682238383,-500.0,0.0002083,3]
[350193915,1737682238393,-18.88406504,0.00020882,3]
[350193916,1737682238402,-500.0,0.00020882,3]
[350193917,1737682238412,-225.32,0.00020883,3]
[350193918,1737682238421,-500.0,0.00020967,3]
[350193919,1737682238430,-1113.38628071,0.00020967,3]
[350193920,1737682238444,-238.34371929,0.00020967,3]
[350193921,1737682238454,-500.0,0.00020967,3]
[350193922,1737682238464,-153.82,0.00020995,2]
[350193923,1737682238473,-151.0,0.00021012,2]
[350193924,1737682238483,-151.0,0.00021012,2]
[350193925,1737682238493,-151.0,0.00021012,2]
[350193926,1737682238502,-151.0,0.00021012,2]
[350193927,1737682238512,-151.0,0.00021012,2]
[350193928,1737682238523,-151.0,0.00021012,2]
[350193929,1737682238532,-151.0,0.00021012,2]
[350193930,1737682238542,-151.0,0.00021012,2]
[350193931,1737682238551,-151.0,0.00021012,2]
[350193933,1737682238560,-157.04,0.00021012,2]
[350193934,1737682238569,-157.0,0.00021012,2]
[350193935,1737682238578,-157.0,0.00021012,2]
[350193936,1737682238587,-157.0,0.00021012,2]
[350193937,1737682238596,-157.0,0.00021012,2]
[350193938,1737682238607,-157.0,0.00021012,2]
[350193939,1737682238615,-157.0,0.00021012,2]
[350193940,1737682238624,-157.0,0.00021012,2]
[350193941,1737682238634,-157.0,0.00021012,2]
[350193942,1737682238643,-157.0,0.00021012,2]
[350193943,1737682238655,-157.0,0.00021012,2]
[350193944,1737682238667,-157.0,0.00021012,2]
[350193945,1737682238676,-157.0,0.00021012,2]
[350193946,1737682238686,-157.0,0.00021012,2]
[350193947,1737682238695,-157.0,0.00021012,2]
[350193948,1737682238705,-235.26,0.00021012,2]
[350193949,1737682238714,-157.0,0.00021012,2]
[350193950,1737682238723,-157.0,0.00021012,2]
[350193951,1737682238734,-157.0,0.00021012,2]
[350193952,1737682238745,-157.0,0.00021012,2]
[350193953,1737682238755,-157.0,0.00021012,2]
[350193954,1737682238764,-157.0,0.00021012,2]
[350193955,1737682238773,-241.47,0.00021012,2]
[350193956,1737682238783,-500.0,0.00021019,3]
[350193957,1737682238792,-500.0,0.00021019,3]
[350193958,1737682238801,-163.40667111,0.000211,2]
[350193959,1737682238810,-500.0,0.00021104,3]
[350193960,1737682238819,-1351.73,0.00021104,3]
[350193961,1737682238829,-500.0,0.00021104,3]
[350193962,1737682238838,-151.0,0.00021105,2]
[350193963,1737682238847,-3000.0,0.0002111,2]
[350193964,1737682238857,-3000.0,0.0002112,2]
[350193965,1737682238866,-3000.0,0.0002113,2]
[350193966,1737682238875,-3000.0,0.0002114,2]
[350193967,1737682238885,-3000.0,0.0002115,2]
[350193968,1737682238895,-500.0,0.00021156,3]
[350193969,1737682238904,-500.0,0.00021156,3]
[350193970,1737682238914,-3000.0,0.0002116,2]
[350193971,1737682238924,-3000.0,0.0002117,2]
[350193972,1737682238933,-3000.0,0.0002118,2]
[350193973,1737682238943,-3000.0,0.0002119,2]
[350193974,1737682238954,-8684.29,0.000212,2]
[350193975,1737682238964,-5444.99,0.000212,2]
[350193976,1737682238973,-3000.0,0.000212,2]
[350193977,1737682238982,-151.0,0.000212,2]
[350193978,1737682238992,-3000.0,0.0002121,2]
[350193979,1737682239001,-3000.0,0.0002122,2]
[350193980,1737682239011,-2290.87489251,0.0002122,2]
[350193981,1737682239021,-1101.01582823,0.0002123,2]
[350193982,1737682239034,-718.019524,0.0002123,2]
[350194023,1737682240376,-1180.96464777,0.0002123,2]
[350194026,1737682240386,-199.9,0.0002123,2]
[350194028,1737682240397,-199.9,0.0002123,2]
[350194030,1737682240407,-150.02,0.0002123,2]
[350194032,1737682240416,-150.05,0.0002123,2]
[350194034,1737682240425,-199.9,0.0002123,2]
[350194036,1737682240436,-205.97291133,0.0002123,2]
[350194038,1737682240449,-328.55375493,0.0002124,2]
[350194040,1737682240461,-2671.44624507,0.0002124,2]
[350194042,1737682240470,-500.0,0.00021241,3]
[350194044,1737682240481,-1351.73,0.00021241,3]
[350194046,1737682240491,-500.0,0.00021241,3]
[350194048,1737682240501,-3000.0,0.0002125,2]
[350194050,1737682240511,-3000.0,0.0002126,2]
[350194052,1737682240522,-3000.0,0.0002127,2]
[350194054,1737682240533,-151.0,0.0002127,2]
[350194056,1737682240542,-151.0,0.0002127,2]
[350194058,1737682240552,-151.0,0.0002127,2]
[350194060,1737682240562,-151.0,0.0002127,2]
[350194062,1737682240571,-151.0,0.0002127,2]
[350194064,1737682240581,-151.0,0.0002127,2]
[350194066,1737682240590,-151.0,0.0002127,2]
[350194068,1737682240600,-151.0,0.0002127,2]
[350194070,1737682240610,-151.0,0.0002127,2]
[350194072,1737682240619,-151.0,0.0002127,2]
[350194074,1737682240628,-151.0,0.0002127,2]
[350194076,1737682240638,-151.0,0.0002127,2]
[350194078,1737682240647,-177.48347,0.0002127,2]
[350194080,1737682240657,-227.964044,0.0002127,2]
[350194082,1737682240667,-151.0,0.0002127,2]
[350194084,1737682240676,-689.347567,0.0002127,2]
[350194086,1737682240686,-689.347567,0.0002127,2]
[350194088,1737682240696,-3000.0,0.0002128,2]
[350194090,1737682240705,-169.39946869,0.00021288,2]
[350194092,1737682240715,-3000.0,0.0002129,2]
[350194094,1737682240724,-151.0,0.0002129,2]
[350194096,1737682240733,-151.0,0.0002129,2]
[350194098,1737682240742,-151.0,0.0002129,2]
[350194100,1737682240751,-151.0,0.0002129,2]
[350194102,1737682240761,-500.0,0.00021293,3]
[350194104,1737682240771,-500.0,0.00021293,3]
[350194106,1737682240780,-151.0,0.00021294,2]
[350194109,1737682240790,-259.924181,0.00021294,2]
[350194111,1737682240800,-259.924181,0.00021294,2]
[350194113,1737682240809,-151.0,0.00021294,2]
[350194115,1737682240819,-151.0,0.00021294,2]
[350194117,1737682240829,-151.0,0.00021294,2]
[350194119,1737682240838,-188.331445,0.00021294,2]
[350194121,1737682240847,-188.331445,0.00021294,2]
[350194123,1737682240858,-169.814454,0.00021294,2]
[350194125,1737682240867,-151.0,0.00021294,2]
[350194127,1737682240877,-151.0,0.00021294,2]
[350194129,1737682240887,-151.0,0.00021294,2]
[350194131,1737682240897,-151.0,0.00021294,2]
[350194133,1737682240907,-151.0,0.00021294,2]
[350194135,1737682240916,-473.162017,0.00021294,2]
[350194137,1737682240926,-473.162017,0.00021294,2]
[350194139,1737682240935,-467.548619,0.00021294,2]
[350194141,1737682240944,-201.799155,0.00021294,2]
[350194143,1737682240953,-467.548619,0.00021294,2]
[350194145,1737682240962,-201.799155,0.00021294,2]
[350194147,1737682240972,-151.0,0.00021294,2]
[350194149,1737682240981,-151.0,0.00021294,2]
[350194151,1737682240991,-151.0,0.00021294,2]
[350194153,1737682241001,-151.0,0.00021294,2]
[350194155,1737682241016,-3000.0,0.000213,2]
[350194157,1737682241025,-3000.0,0.0002131,2]
[350194159,1737682241035,-3696.874641,0.0002132,2]
[350194161,1737682241044,-500.0,0.00021378,3]
[350194163,1737682241053,-1351.73,0.00021378,3]
[350194165,1737682241062,-500.0,0.00021378,3]
[350194167,1737682241071,-311.16487996,0.00021399,2]
[350194169,1737682241081,-619.61537933,0.00021399,2]
[350194171,1737682241090,-420.74160459,0.00021399,2]
[350194173,1737682241100,-195.77127872,0.00021399,2]
[350194175,1737682241111,-16927.14036361,0.000214,3]
[350194391,1737682243320,-1750.26359283,0.000214,3]
[350194400,1737682243401,-11709.07310781,0.000214,3]
[350194409,1737682243481,-932.80739512,0.000214,3]
[350194411,1737682243492,-4362.12781443,0.000214,3]
[350194696,1737682246365,-397.943,0.00020623,2]
[350194698,1737682246375,-1559.37722,0.000214,3]
[350194700,1737682246387,-10923.98583445,0.000214,3]
[350194702,1737682246397,-151.0,0.000214,2]
[350194704,1737682246407,-169.740492,0.000214,2]
[350194706,1737682246416,-151.0,0.000214,2]
[350194708,1737682246425,-151.0,0.000214,2]
[350194710,1737682246435,-151.0,0.000214,2]
[350194712,1737682246448,-151.0,0.000214,2]
[350194714,1737682246458,-151.0,0.000214,2]
[350194716,1737682246467,-151.0,0.000214,2]
[350194718,1737682246476,-151.0,0.000214,2]
[350194720,1737682246487,-689.347567,0.000214,2]
[350194722,1737682246497,-689.347567,0.000214,2]
[350194724,1737682246506,-151.0,0.000214,2]
[350194726,1737682246517,-151.0,0.000214,2]
[350194728,1737682246526,-259.924181,0.000214,2]
[350194730,1737682246536,-259.924181,0.000214,2]
[350194732,1737682246545,-151.0,0.000214,2]
[350194735,1737682246554,-151.0,0.000214,2]
[350194738,1737682246564,-151.0,0.000214,2]
[350194740,1737682246573,-151.0,0.000214,2]
[350194742,1737682246583,-188.331445,0.000214,2]
[350194744,1737682246592,-188.331445,0.000214,2]
[350194746,1737682246602,-151.0,0.000214,2]
[350194749,1737682246615,-151.0,0.000214,2]
[350194751,1737682246624,-257.632085,0.000214,2]
[350194753,1737682246634,-151.0,0.000214,2]
[350194755,1737682246644,-151.0,0.000214,2]
[350194756,1737682246653,-473.162017,0.000214,2]
[350194759,1737682246664,-473.162017,0.000214,2]
[350194761,1737682246674,-467.548619,0.000214,2]
[350194763,1737682246683,-201.799155,0.000214,2]
[350194765,1737682246692,-467.548619,0.000214,2]
[350194767,1737682246702,-201.799155,0.000214,2]
[350194768,1737682246711,-151.0,0.000214,2]
[350194771,1737682246720,-151.0,0.000214,2]
[350194773,1737682246731,-151.0,0.000214,2]
[350194775,1737682246740,-151.0,0.000214,2]
[350194776,1737682246749,-500.0,0.0002143,3]
[350194778,1737682246759,-500.0,0.0002143,3]
[350194780,1737682246768,-199.0,0.00021487,2]
[350194783,1737682246778,-199.0,0.00021487,2]
[350194784,1737682246788,-199.52,0.00021487,2]
[350194787,1737682246798,-150.02,0.00021504,2]
[350194789,1737682246808,-500.0,0.00021515,3]
[350194791,1737682246818,-1351.73,0.00021515,3]
[350194793,1737682246828,-500.0,0.00021515,3]
[350194795,1737682246838,-500.0,0.00021567,3]
[350194797,1737682246848,-500.0,0.00021567,3]
[350194799,1737682246860,-169.39946869,0.00021589,2]
[350194801,1737682246871,-5877.0,0.000216,4]
[350194803,1737682246880,-159.325296,0.000216,4]
[350194805,1737682246890,-500.0,0.00021652,3]
[350194807,1737682246900,-1351.73,0.00021652,3]
[350194809,1737682246909,-500.0,0.00021652,3]
[350194811,1737682246919,-500.0,0.00021704,3]
[350194813,1737682246930,-500.0,0.00021704,3]
[350194815,1737682246940,-150.02,0.00021778,2]
[350194817,1737682246950,-500.0,0.00021789,3]
[350194819,1737682246960,-1351.73,0.00021789,3]
[350194831,1737682246971,-500.0,0.00021789,3]
[350194833,1737682247079,-500.0,0.00021841,3]
[350194835,1737682247089,-500.0,0.00021841,3]
[350194837,1737682247098,-151.0,0.00021843,2]
[350194839,1737682247110,-151.0,0.00021843,2]
[350194841,1737682247119,-500.44183303,0.00021873,2]
[350194843,1737682247128,-500.0,0.00021873,2]
[350194845,1737682247138,-267.4873651,0.00021873,2]
[350194847,1737682247148,-500.0,0.00021873,2]
[350194849,1737682247157,-412.03667437,0.00021873,2]
[350194851,1737682247167,-500.0,0.00021873,2]
[350194853,1737682247177,-500.0,0.00021873,2]
[350194855,1737682247186,-500.0,0.00021873,2]
[350194857,1737682247196,-576.6381973,0.00021873,2]
[350194859,1737682247205,-194.23592831,0.00021873,2]
[350194861,1737682247215,-151.0,0.00021873,2]
[350194863,1737682247224,-151.0,0.00021873,2]
[350194865,1737682247233,-151.0,0.00021873,2]
[350194867,1737682247243,-151.0,0.00021873,2]
[350194869,1737682247253,-151.0,0.00021873,2]
[350194871,1737682247262,-689.347567,0.00021873,2]
[350194873,1737682247272,-689.347567,0.00021873,2]
[350194875,1737682247281,-151.0,0.00021873,2]
[350194877,1737682247291,-151.0,0.00021873,2]
[350194879,1737682247301,-259.924181,0.00021873,2]
[350194881,1737682247310,-259.924181,0.00021873,2]
[350194883,1737682247320,-151.0,0.00021873,2]
[350194885,1737682247330,-151.0,0.00021873,2]
[350194887,1737682247339,-188.331445,0.00021873,2]
[350194889,1737682247349,-188.331445,0.00021873,2]
[350194891,1737682247361,-151.0,0.00021873,2]
[350194893,1737682247371,-151.0,0.00021873,2]
[350194895,1737682247380,-151.0,0.00021873,2]
[350194897,1737682247390,-226.587084,0.00021873,2]
[350194899,1737682247400,-473.162017,0.00021873,2]
[350194901,1737682247410,-473.162017,0.00021873,2]
[350194904,1737682247421,-467.548619,0.00021873,2]
[350194905,1737682247431,-201.799155,0.00021873,2]
[350194907,1737682247441,-467.548619,0.00021873,2]
[350194909,1737682247455,-201.799155,0.00021873,2]
[350194912,1737682247465,-151.0,0.00021873,2]
[350194913,1737682247474,-151.0,0.00021873,2]
[350194916,1737682247483,-151.0,0.00021873,2]
[350194918,1737682247495,-151.0,0.00021873,2]
[350194919,1737682247504,-500.0,0.00021898,2]
[350194922,1737682247514,-227.65626159,0.00021898,2]
[350194923,1737682247524,-599.71195517,0.00021898,2]
[350194926,1737682247536,-151.0,0.00021899,2]
[350194928,1737682247546,-151.0,0.00021899,2]
[350194930,1737682247555,-277.203375,0.00021899,2]
[350194932,1737682247564,-11069.03063762,0.00021899,5]
[350194934,1737682247574,-48883.48106997,0.00021899,5]
[350194936,1737682247589,-1672.42509565,0.00021899,5]
[350195277,1737682430951,2550.0,0.000235,120]
[350195278,1737682434622,5200.0,0.00024,120]
[350195279,1737682703421,540.74,0.00015056,2]
[350195280,1737682798189,165.424039,0.00013973,2]
[350195338,1737683432559,-318.44421,0.000189,2]
[350195340,1737683432568,-170.27442,0.00019451,2]
[350195342,1737683432578,-164.744043,0.00019794,2]
[350195344,1737683432586,-501.40151435,0.00019837,2]
[350195346,1737683432595,-6952.71797551,0.0002,2]
[350195348,1737683432605,-500.0,0.00020164,2]
[350195350,1737683432614,-300.0,0.00020689,2]
[350195352,1737683432624,-150.434,0.0002069,2]
[350195354,1737683432634,-536.309,0.0002069,2]
[350195356,1737683432643,-2057.0,0.0002069,2]
[350195357,1737683432652,-2305.0,0.0002069,2]
[350195358,1737683432661,-150.119,0.0002069,2]
[350195359,1737683432670,-398.076,0.0002069,2]
[350195360,1737683432680,-731.61,0.000207,2]
[350195361,1737683432689,-416.112,0.000208,2]
[350195362,1737683432698,-509.05599076,0.0002083,7]
[350195363,1737683432707,-500.0,0.0002083,3]
[350195364,1737683432717,-500.0,0.0002083,3]
[350195365,1737683432727,-256.21574314,0.00020885,2]
[350195366,1737683432736,-500.0,0.00020898,3]
[350195367,1737683432745,-501.85981355,0.00020898,3]
[350195368,1737683432755,-198.346,0.00020899,2]
[350195369,1737683432764,-516.4384057,0.00020899,3]
[350195370,1737683432773,-500.0,0.00020899,2]
[350195371,1737683432783,-500.0,0.00020899,3]
[350195372,1737683432794,-178.85198352,0.00020899,3]
[350195373,1737683432805,-500.0,0.00020899,3]
[350195374,1737683432817,-500.0,0.00020899,3]
[350195375,1737683432827,-901.15,0.00020899,3]
[350195376,1737683432836,-500.0,0.00020899,3]
[350195377,1737683432845,-500.0,0.00020899,2]
[350195378,1737683432855,-159.35938311,0.00020899,2]
[350195379,1737683432865,-269.79836862,0.00020899,2]
[350195380,1737683432874,-83046.78343768,0.000209,5]
[350195381,1737683435402,688.85486321,0.00024,120]
[350195389,1737683438398,-6838.07747626,0.000209,5]
[350195398,1737683438472,-150.0,0.0002069,2]
[350195399,1737683438483,-2151.08349313,0.000209,5]
[350195400,1737683438492,-10474.72489083,0.000209,5]
[350195401,1737683438502,-33799.63126122,0.000209,2]
[350195402,1737683438513,-751.89684868,0.000209,2]
[350195403,1737683438525,-3892.08253874,0.000209,2]
[350195405,1737683442076,-150.163,0.0002069,2]
[350195406,1737683442086,-247.913,0.000209,2]
[350195414,1737683446399,-45911.50650006,0.000209,2]
[350195415,1737683446412,-122032.3047691,0.000209,2]
[350195432,1737683454038,9378.550059,0.00024,120]
[350195434,1737683795983,165.424039,0.00013973,2]
[350195436,1737684376507,846.0,0.00024,120]
[350195498,1737684637693,-683.10940768,0.0001676,2]
[350195499,1737684637703,-222.54459232,0.00016929,2]
[350195536,1737684638588,-528.78757581,0.00016929,2]
[350195552,1737684638731,-4946.70005062,0.00016929,2]
[350195554,1737684638741,-150.40574728,0.000172,2]
[350195556,1737684638750,-247.0758083,0.00017808,2]
[350195558,1737684638760,-194.3721235,0.00017965,2]
[350195560,1737684638770,-300.0,0.00018899,2]
[350195562,1737684638779,-345.17207176,0.000189,2]
[350195564,1737684638789,-210.54165012,0.000189,2]
[350195565,1737684638799,-170.90531,0.00019178,2]
[350195567,1737684638808,-2899.52416649,0.00019208,2]
[350195601,1737684640656,-497.74000002,0.00019208,2]
[350195604,1737684640677,-4175.49090179,0.00019208,2]
[350195606,1737684640687,-500.0,0.00019559,3]
[350195607,1737684640697,-500.0,0.00019559,3]
[350195608,1737684640706,-609.8948829,0.00019559,3]
[350195609,1737684640717,-500.0,0.00019559,3]
[350195610,1737684640726,-511.92496999,0.00019559,3]
[350195611,1737684640735,-15333.0017798,0.0001956,2]
[350195612,1737684640745,-467.29792174,0.00019596,2]
[350195614,1737684640755,-500.0,0.00019696,3]
[350195616,1737684640764,-500.0,0.00019696,3]
[350195618,1737684640773,-500.0,0.00019696,3]
[350195620,1737684640783,-500.0,0.00019833,3]
[350195622,1737684640793,-290.99914979,0.00019833,3]
[350195624,1737684640803,-500.0,0.00019833,3]
[350195626,1737684640812,-500.0,0.0001997,3]
[350195628,1737684640822,-500.0,0.0001997,3]
[350195630,1737684640831,-5292.0,0.0002,2]
[350195632,1737684640841,-500.0,0.00020107,3]
[350195633,1737684640850,-373.66727353,0.00020107,3]
[350195634,1737684640859,-221.34002661,0.00020164,2]
[350195635,1737684640870,-467.29792167,0.00020202,2]
[350195636,1737684640879,-500.0,0.00020244,3]
[350195637,1737684640887,-500.0,0.00020381,3]
[350195638,1737684640896,-500.0,0.00020518,3]
[350195639,1737684640905,-420.0,0.00020602,2]
[350195640,1737684640915,-934.04835723,0.0002063,2]
[350195641,1737684640927,-500.0,0.00020655,3]
[350195642,1737684640936,-150.0,0.0002069,2]
[350195643,1737684640955,-150.248,0.0002069,2]
[350195644,1737684640966,-2057.0,0.0002069,2]
[350195645,1737684640975,-536.0,0.0002069,2]
[350195646,1737684640985,-2305.0,0.0002069,2]
[350195647,1737684640994,-395.0,0.0002069,2]
[350195648,1737684641004,-260.3332517,0.00020791,2]
[350195650,1737684641013,-500.0,0.00020792,3]
[350195652,1737684641023,-200.52123021,0.00020798,2]
[350195654,1737684641032,-407.455,0.000208,2]
[350195656,1737684641042,-153.0,0.00020852,2]
[350195658,1737684641052,-153.0,0.00020852,2]
[350195660,1737684641061,-153.0,0.00020852,2]
[350195662,1737684641071,-153.0,0.00020852,2]
[350195664,1737684641081,-153.0,0.00020852,2]
[350195666,1737684641090,-153.0,0.00020852,2]
[350195668,1737684641100,-153.0,0.00020852,2]
[350195669,1737684641110,-153.0,0.00020852,2]
[350195671,1737684641119,-159.28,0.00020852,2]
[350195673,1737684641129,-512.80712331,0.00020898,3]
[350195675,1737684641140,-503.72572401,0.00020898,3]
[350195677,1737684641152,-500.0,0.00020898,3]
[350195679,1737684641162,-500.0,0.00020898,3]
[350195681,1737684641172,-503.03832511,0.00020898,3]
[350195683,1737684641183,-509.51244213,0.00020898,3]
[350195685,1737684641193,-500.0,0.00020898,3]
[350195687,1737684641203,-503.65572482,0.00020898,3]
[350195689,1737684641213,-500.0,0.00020898,3]
[350195691,1737684641224,-500.0,0.00020898,3]
[350195693,1737684641234,-503.00916329,0.00020898,3]
[350195695,1737684641243,-637.88562503,0.00020898,3]
[350195697,1737684641253,-503.9413977,0.00020898,3]
[350195699,1737684641263,-525.46928228,0.00020898,3]
[350195701,1737684641272,-506.39530521,0.00020898,3]
[350195703,1737684641281,-577.10725711,0.00020898,3]
[350195704,1737684641290,-502.97654572,0.00020898,3]
[350195705,1737684641300,-504.72911011,0.00020898,3]
[350195708,1737684641310,-586.39957112,0.00020898,3]
[350195710,1737684641319,-517.20299072,0.00020898,3]
[350195712,1737684641327,-504.17432487,0.00020898,3]
[350195714,1737684641337,-505.61436411,0.00020898,3]
[350195716,1737684641347,-509.22372805,0.00020898,3]
[350195718,1737684641356,-504.11138356,0.00020898,3]
[350195720,1737684641365,-503.75332094,0.00020898,3]
[350195722,1737684641375,-503.15156767,0.00020898,3]
[350195724,1737684641387,-507.34912195,0.00020898,3]
[350195726,1737684641398,-500.0,0.00020898,3]
[350195729,1737684641412,-506.36922936,0.00020898,3]
[350195730,1737684641423,-502.56307825,0.00020898,2]
[350195733,1737684641433,-508.69679925,0.00020898,3]
[350195735,1737684641442,-500.0,0.00020898,3]
[350195736,1737684641452,-500.0,0.00020898,3]
[350195738,1737684641462,-509.5974341,0.00020898,3]
[350195740,1737684641471,-600.87279017,0.00020898,3]
[350195742,1737684641480,-500.0,0.00020898,3]
[350195744,1737684641489,-505.37882735,0.00020898,3]
[350195746,1737684641499,-413.22010507,0.00020898,3]
[350195748,1737684641508,-506.5715116,0.00020898,3]
[350195750,1737684641518,-508.9757737,0.00020898,3]
[350195752,1737684641528,-547.20077369,0.00020898,3]
[350195754,1737684641537,-500.0,0.00020898,3]
[350195756,1737684641547,-501.81943548,0.00020898,3]
[350195758,1737684641556,-863.6,0.00020898,3]
[350195760,1737684641566,-506.88470573,0.00020898,3]
[350195762,1737684641575,-500.0,0.00020898,3]